fUSD/lending_fUSD_20260607
["ID","MTS","AMOUNT","RATE_DAILY","PERIOD"]
[424324292,1780768297000,-3256.00953222,0.000367,30]
[424324294,1780768297000,-1000.0,0.000367,2]
[424324291,1780768297000,-3256.00953222,0.000367,30]
[424324293,1780768297000,-246.77709265,0.000367,30]
[424324276,1780768297000,-350.0,0.00036621,41]
[424324259,1780768297000,-3620.0,0.00036614,7]
[424324288,1780768297000,-1426.0,0.0003668,7]
[424324269,1780768297000,-250.0,0.00036616,2]
[424324260,1780768297000,-5000.0,0.00036616,2]
[424324233,1780768297000,-5800.0,0.00036473,2]
[424324234,1780768297000,-5800.0,0.00036481,2]
[424324235,1780768297000,-150.0,0.00036485,30]
[424324237,1780768297000,-2146.6994,0.00036495,2]
[424324236,1780768297000,-5800.0,0.0003649,2]
[424324238,1780768297000,-5800.0,0.00036498,2]
[424324239,1780768297000,-1000.0,0.000365,120]
[424324240,1780768297000,-423.75968965,0.00036509,120]
[424324241,1780768297000,-277.74360465,0.00036509,120]
[424324247,1780768297000,-150.0,0.00036568,30]
[424324242,1780768297000,-624.0,0.0003651,3]
[424324253,1780768297000,-2013.143,0.000366,120]
[424324252,1780768297000,-2013.143,0.000366,120]
[424324231,1780768297000,-6600.0,0.00036463,7]
[424324243,1780768297000,-156.0,0.0003651,3]
[424324250,1780768297000,-5366.0,0.00036598,7]
[424324267,1780768297000,-250.0,0.00036616,2]
[424324257,1780768297000,-173.03923399,0.000366,30]
[424324256,1780768297000,-173.039234,0.000366,30]
[424324255,1780768297000,-4407.0,0.000366,7]
[424324251,1780768297000,-158.13681208,0.00036599,2]
[424324268,1780768297000,-250.0,0.00036616,2]
[424324246,1780768297000,-328.72481609,0.00036557,7]
[424324248,1780768297000,-982.7085755,0.00036574,120]
[424324249,1780768297000,-161.07028204,0.00036575,30]
[424324245,1780768297000,-8096.2173,0.00036529,2]
[424324263,1780768297000,-5000.0,0.00036616,2]
[424324244,1780768297000,-150.0,0.00036526,30]
[424324254,1780768297000,-2013.14,0.000366,120]
[424324322,1780768298000,-791.0,0.00036717,7]
[424324321,1780768298000,-452.63,0.00036714,10]
[424324324,1780768298000,-5000.0,0.0003673,30]
[424324329,1780768298000,-150.0,0.00036756,2]
[424324331,1780768298000,-223.73,0.0003678,120]
[424324333,1780768298000,-1592.92514467,0.00036792,120]
[424324334,1780768298000,-5653.0,0.00036793,7]
[424324330,1780768298000,-150.0,0.00036774,30]
[424324336,1780768298000,-1642.79997316,0.000368,2]
[424324332,1780768298000,-931.0,0.00036784,7]
[424324323,1780768298000,-649.0,0.00036729,7]
[424324338,1780768298000,-9279.69377708,0.000368,30]
[424324335,1780768298000,-3720.69,0.00036795,10]
[424324340,1780768298000,-5000.0,0.00036803,10]
[424324339,1780768298000,-9279.69377708,0.000368,30]
[424324337,1780768298000,-9279.69377709,0.000368,30]
[424324326,1780768298000,-759.0,0.00036748,12]
[424324343,1780768298000,-150.0,0.00036815,30]
[424324354,1780768298000,-150.0,0.00036897,30]
[424324342,1780768298000,-4643.0,0.00036811,7]
[424324344,1780768298000,-1605.67,0.00036842,2]
[424324345,1780768298000,-1586.31665023,0.00036842,2]
[424324353,1780768298000,-1553.0,0.00036896,7]
[424324349,1780768298000,-150.0,0.00036856,30]
[424324341,1780768298000,-2322.0,0.00036807,11]
[424324325,1780768298000,-150.0,0.00036732,30]
[424324314,1780768298000,-242.963508,0.00036705,120]
[424324318,1780768298000,-962.0,0.00036705,7]
[424324348,1780768298000,-320.0,0.0003685,42]
[424324300,1780768298000,-500.0,0.00036705,120]
[424324299,1780768298000,-987.0633314,0.00036705,120]
[424324297,1780768298000,-196.5695596,0.00036705,120]
[424324296,1780768298000,-242.117482,0.00036705,120]
[424324298,1780768298000,-744.0373034,0.00036705,120]
[424324295,1780768298000,-1000.0,0.000367,2]
[424324304,1780768298000,-500.0,0.00036705,120]
[424324305,1780768298000,-980.8787157,0.00036705,120]
[424324302,1780768298000,-500.0,0.00036705,120]
[424324303,1780768298000,-790.0818506,0.00036705,120]
[424324301,1780768298000,-500.0,0.00036705,120]
[424324307,1780768298000,-932.05429,0.00036705,120]
[424324308,1780768298000,-357.1257385,0.00036705,120]
[424324315,1780768298000,-500.0,0.00036705,120]
[424324310,1780768298000,-554.4033122,0.00036705,120]
[424324313,1780768298000,-890.499109,0.00036705,120]
[424324312,1780768298000,-500.0,0.00036705,120]
[424324309,1780768298000,-153.0994486,0.00036705,120]
[424324311,1780768298000,-500.0,0.00036705,120]
[424324317,1780768298000,-791.896713,0.00036705,120]
[424324327,1780768298000,-665.456259,0.0003675,17]
[424324328,1780768298000,-25000.0,0.00036751,10]
[424324316,1780768298000,-500.0,0.00036705,120]
[424324319,1780768298000,-1100.0,0.00036711,60]
[424324320,1780768298000,-1562.0,0.00036712,30]
[424324306,1780768298000,-164.7623219,0.00036705,120]
[424324346,1780768298000,-1383.06,0.00036845,120]
[424324347,1780768298000,-1202.93,0.00036849,120]
[424324381,1780768298000,-1562.0,0.00036986,30]
[424324386,1780768298000,-2000.0,0.00036986,120]
[424324382,1780768298000,-1000.0,0.00036986,120]
[424324384,1780768298000,-1000.0,0.00036986,120]
[424324392,1780768298000,-643.95,0.00036986,2]
[424324387,1780768298000,-968.66,0.00036986,5]
[424324389,1780768298000,-600.0,0.00036986,120]
[424324385,1780768298000,-500.0,0.00036986,120]
[424324393,1780768298000,-643.95,0.00036986,2]
[424324391,1780768298000,-1000.0,0.00036986,120]
[424324388,1780768298000,-600.0,0.00036986,120]
[424324390,1780768298000,-800.0,0.00036986,120]
[424324406,1780768298000,-7409.3064499,0.00037,10]
[424324394,1780768298000,-580.46,0.00036986,2]
[424324399,1780768298000,-572.78,0.0003699,2]
[424324398,1780768298000,-482.15,0.0003699,2]
[424324404,1780768298000,-169.0052141,0.00037,2]
[424324405,1780768298000,-1023.12184014,0.00037,10]
[424324395,1780768298000,-300.0,0.00036987,2]
[424324396,1780768298000,-482.15,0.00036987,2]
[424324397,1780768298000,-482.15,0.0003699,2]
[424324401,1780768298000,-150.0,0.00037,2]
[424324400,1780768298000,-396.06,0.0003699,2]
[424324402,1780768298000,-551885.1134827,0.00037,20]
[424324350,1780768298000,-1039.0,0.00036869,2]
[424324380,1780768298000,-643.77,0.00036986,2]
[424324383,1780768298000,-1000.0,0.00036986,120]
[424324403,1780768298000,-365.0,0.00037,2]
[424324377,1780768298000,-396.06,0.00036986,2]
[424324352,1780768298000,-1773.03,0.00036889,2]
[424324373,1780768298000,-643.95,0.00036986,2]
[424324351,1780768298000,-158.13681208,0.00036873,2]
[424324355,1780768298000,-251.48319337,0.00036899,3]
[424324358,1780768298000,-1134.0,0.00036923,7]
[424324357,1780768298000,-1276.0,0.0003691,7]
[424324359,1780768298000,-25000.0,0.00036929,10]
[424324356,1780768298000,-1743.7,0.000369,120]
[424324364,1780768298000,-15000.0,0.00036968,120]
[424324360,1780768298000,-150.0,0.00036938,30]
[424324366,1780768298000,-573.03,0.00036986,2]
[424324361,1780768298000,-14910.11,0.00036941,30]
[424324365,1780768298000,-150.0,0.00036979,30]
[424324367,1780768298000,-643.95,0.00036986,2]
[424324362,1780768298000,-161.07028204,0.00036959,30]
[424324375,1780768298000,-279.65655325,0.00036986,30]
[424324374,1780768298000,-644.0,0.00036986,2]
[424324372,1780768298000,-573.03,0.00036986,2]
[424324370,1780768298000,-185.04,0.00036986,2]
[424324378,1780768298000,-643.96,0.00036986,2]
[424324376,1780768298000,-244.71,0.00036986,120]
[424324368,1780768298000,-573.03,0.00036986,2]
[424324371,1780768298000,-575.26,0.00036986,2]
[424324369,1780768298000,-643.95,0.00036986,2]
[424324363,1780768298000,-300.0,0.00036967,7]
[424324379,1780768298000,-151.0,0.00036986,2]
[424324453,1780768299000,-427.94472488,0.000371,2]
[424324445,1780768299000,-482.15,0.00037045,2]
[424324454,1780768299000,-293.66731404,0.000371,30]
[424324450,1780768299000,-1251.06,0.0003709,2]
[424324447,1780768299000,-150.0,0.00037062,30]
[424324444,1780768299000,-396.06,0.00037042,2]
[424324443,1780768299000,-643.86,0.00037042,2]
[424324442,1780768299000,-549.82467016,0.00037037,120]
[424324441,1780768299000,-150.0,0.00037021,30]
[424324438,1780768299000,-250.0,0.00037005,2]
[424324446,1780768299000,-1799.1532044,0.00037059,120]
[424324451,1780768299000,-5000.0,0.000371,30]
[424324448,1780768299000,-2000.0,0.00037068,30]
[424324464,1780768299000,-300.0,0.00037108,2]
[424324452,1780768299000,-164049.57867211,0.000371,2]
[424324456,1780768299000,-1200.1055665,0.000371,120]
[424324466,1780768299000,-300.0,0.00037108,2]
[424324467,1780768299000,-1592.92514467,0.00037117,120]
[424324455,1780768299000,-1093.4156204,0.000371,120]
[424324457,1780768299000,-1098.93627381,0.000371,120]
[424324461,1780768299000,-300.0,0.00037108,2]
[424324465,1780768299000,-311.6,0.00037108,2]
[424324460,1780768299000,-300.0,0.00037108,2]
[424324463,1780768299000,-300.0,0.00037108,2]
[424324458,1780768299000,-1183.73298945,0.000371,120]
[424324459,1780768299000,-150.0,0.00037103,30]
[424324437,1780768299000,-250.0,0.00037005,2]
[424324449,1780768299000,-412519.5042,0.0003708,30]
[424324434,1780768299000,-250.0,0.00037005,2]
[424324410,1780768299000,-447.0,0.00037,7]
[424324430,1780768299000,-5000.0,0.00037005,2]
[424324407,1780768299000,-4500.0,0.00037,2]
[424324409,1780768299000,-8157.20530716,0.00037,30]
[424324414,1780768299000,-300.0,0.00037,60]
[424324412,1780768299000,-500.0,0.00037,120]
[424324415,1780768299000,-115000.0,0.00037,100]
[424324411,1780768299000,-12200.0,0.00037,2]
[424324413,1780768299000,-300.0,0.00037,120]
[424324416,1780768299000,-50000.0,0.00037,2]
[424324408,1780768299000,-6000.0,0.00037,90]
[424324419,1780768299000,-10000.0,0.00037,7]
[424324418,1780768299000,-520.05535046,0.00037,120]
[424324417,1780768299000,-650.32492,0.00037,5]
[424324421,1780768299000,-182.139,0.00037,2]
[424324439,1780768299000,-250.0,0.00037005,2]
[424324420,1780768299000,-630167.0517877,0.00037,120]
[424324425,1780768299000,-210.0,0.00037,30]
[424324422,1780768299000,-2078.5633561,0.00037,15]
[424324424,1780768299000,-4658.84,0.00037,30]
[424324423,1780768299000,-151.0,0.00037,60]
[424324427,1780768299000,-1086.0,0.00037,7]
[424324428,1780768299000,-5000.0,0.00037005,2]
[424324429,1780768299000,-5000.0,0.00037005,2]
[424324433,1780768299000,-5000.0,0.00037005,2]
[424324432,1780768299000,-5000.0,0.00037005,2]
[424324431,1780768299000,-5000.0,0.00037005,2]
[424324435,1780768299000,-250.0,0.00037005,2]
[424324440,1780768299000,-150.0,0.00037008,120]
[424324436,1780768299000,-250.0,0.00037005,2]
[424324426,1780768299000,-261.0,0.00037,30]
[424324473,1780768299000,-150.0,0.00037144,30]
[424324462,1780768299000,-300.0,0.00037108,2]
[424324468,1780768299000,-173.41930553,0.00037125,120]
[424324502,1780768299000,-150.0,0.00037309,30]
[424324507,1780768299000,-500.0,0.00037363,7]
[424324505,1780768299000,-1472.84,0.00037349,30]
[424324504,1780768299000,-1029.55,0.00037349,30]
[424324519,1780768299000,-250.0,0.00037395,2]
[424324509,1780768299000,-150.0,0.0003738,30]
[424324508,1780768299000,-150.0,0.0003738,30]
[424324510,1780768299000,-173.25,0.0003738,30]
[424324515,1780768299000,-5000.0,0.00037395,2]
[424324511,1780768299000,-150.0,0.00037391,120]
[424324518,1780768299000,-250.0,0.00037395,2]
[424324520,1780768299000,-250.0,0.00037395,2]
[424324513,1780768299000,-5000.0,0.00037395,2]
[424324501,1780768299000,-1251.06,0.00037305,2]
[424324517,1780768299000,-250.0,0.00037395,2]
[424324514,1780768299000,-5000.0,0.00037395,2]
[424324516,1780768299000,-5000.0,0.00037395,2]
[424324521,1780768299000,-250.0,0.00037395,2]
[424324523,1780768299000,-2376.8,0.000374,120]
[424324524,1780768299000,-15746.559,0.000374,120]
[424324526,1780768299000,-2521.73,0.00037425,2]
[424324525,1780768299000,-158.13681208,0.00037421,2]
[424324522,1780768299000,-753.9737,0.000374,60]
[424324527,1780768299000,-150.0,0.00037432,120]
[424324531,1780768299000,-621.34436748,0.00037447,120]
[424324529,1780768299000,-5000.0,0.0003744,7]
[424324528,1780768299000,-5000.0,0.0003744,2]
[424324470,1780768299000,-684.81445312,0.00037135,2]
[424324512,1780768299000,-5000.0,0.00037395,2]
[424324496,1780768299000,-2000.0,0.0003726,120]
[424324530,1780768299000,-506.45041783,0.00037447,120]
[424324500,1780768299000,-1799.1532044,0.00037297,120]
[424324506,1780768299000,-150.0,0.0003735,120]
[424324472,1780768299000,-1948.2421875,0.00037135,2]
[424324471,1780768299000,-312.5,0.00037135,2]
[424324469,1780768299000,-684.81445313,0.00037135,2]
[424324478,1780768299000,-5393.60454,0.00037161,30]
[424324477,1780768299000,-152.2,0.00037155,13]
[424324475,1780768299000,-2488.6,0.00037149,120]
[424324480,1780768299000,-150.0,0.00037185,30]
[424324481,1780768299000,-482.15,0.00037198,2]
[424324476,1780768299000,-152.19,0.00037155,13]
[424324479,1780768299000,-727.51,0.00037177,7]
[424324483,1780768299000,-482.15,0.00037198,2]
[424324482,1780768299000,-575.26,0.00037198,2]
[424324493,1780768299000,-167.40454093,0.0003726,7]
[424324474,1780768299000,-158.13681208,0.00037147,2]
[424324485,1780768299000,-177.139899,0.000372,18]
[424324494,1780768299000,-500.0,0.0003726,120]
[424324499,1780768299000,-759.0,0.00037282,13]
[424324495,1780768299000,-1562.0,0.0003726,30]
[424324498,1780768299000,-150.0,0.00037268,30]
[424324490,1780768299000,-223.73,0.0003721,60]
[424324492,1780768299000,-1000.0,0.0003726,120]
[424324497,1780768299000,-152.4757425,0.00037267,14]
[424324487,1780768299000,-199.15471578,0.000372,120]
[424324491,1780768299000,-150.0,0.00037227,30]
[424324484,1780768299000,-176.274006,0.000372,18]
[424324486,1780768299000,-199.15471579,0.000372,120]
[424324503,1780768299000,-1000.0,0.00037327,60]
[424324488,1780768299000,-644.0,0.00037203,2]
[424324489,1780768299000,-382.62,0.00037203,2]
[424324573,1780768300000,-1000.0,0.0003763,2]
[424324569,1780768300000,-1000.0,0.0003763,2]
[424324562,1780768300000,-1454.6,0.00037572,30]
[424324559,1780768300000,-2000.0,0.00037534,120]
[424324564,1780768300000,-150.0,0.00037579,2]
[424324561,1780768300000,-150.0,0.00037556,120]
[424324568,1780768300000,-1000.0,0.0003763,2]
[424324565,1780768300000,-4421.96119872,0.0003759,2]
[424324571,1780768300000,-1000.0,0.0003763,2]
[424324572,1780768300000,-1000.0,0.0003763,2]
[424324567,1780768300000,-62712.0,0.000376,30]
[424324563,1780768300000,-436.38,0.00037572,2]
[424324577,1780768300000,-1000.0,0.0003763,2]
[424324579,1780768300000,-1000.0,0.0003763,2]
[424324574,1780768300000,-1000.0,0.0003763,2]
[424324578,1780768300000,-1000.0,0.0003763,2]
[424324580,1780768300000,-1000.0,0.0003763,2]
[424324575,1780768300000,-201.0,0.0003763,2]
[424324581,1780768300000,-1000.0,0.0003763,2]
[424324583,1780768300000,-1000.0,0.0003763,2]
[424324592,1780768300000,-298.0,0.0003763,2]
[424324591,1780768300000,-1000.0,0.0003763,2]
[424324582,1780768300000,-1000.0,0.0003763,2]
[424324570,1780768300000,-1000.0,0.0003763,2]
[424324584,1780768300000,-1000.0,0.0003763,2]
[424324576,1780768300000,-1000.0,0.0003763,2]
[424324566,1780768300000,-150.0,0.00037597,120]
[424324539,1780768300000,-150.0,0.00037474,120]
[424324551,1780768300000,-173.31,0.000375,7]
[424324585,1780768300000,-1000.0,0.0003763,2]
[424324533,1780768300000,-1971.76659806,0.00037449,2]
[424324532,1780768300000,-1799.1532044,0.00037447,120]
[424324534,1780768300000,-150.0,0.00037449,2]
[424324537,1780768300000,-400.0,0.00037449,2]
[424324536,1780768300000,-500.0,0.00037449,2]
[424324545,1780768300000,-89081.69850154,0.000375,2]
[424324538,1780768300000,-407.0,0.00037449,2]
[424324542,1780768300000,-10000.0,0.000375,90]
[424324541,1780768300000,-745.65223615,0.00037494,2]
[424324544,1780768300000,-6767.75767807,0.000375,120]
[424324543,1780768300000,-30000.0,0.000375,120]
[424324540,1780768300000,-152.0,0.00037474,12]
[424324546,1780768300000,-2013.143,0.000375,120]
[424324548,1780768300000,-2013.14,0.000375,60]
[424324547,1780768300000,-2013.143,0.000375,120]
[424324555,1780768300000,-1100.0,0.00037533,60]
[424324549,1780768300000,-4500.0,0.000375,30]
[424324550,1780768300000,-236549.81,0.000375,7]
[424324556,1780768300000,-500.0,0.00037533,60]
[424324554,1780768300000,-150.0,0.00037515,120]
[424324557,1780768300000,-500.0,0.00037533,60]
[424324558,1780768300000,-1562.0,0.00037534,30]
[424324552,1780768300000,-12874.3,0.000375,7]
[424324553,1780768300000,-150.0,0.00037504,120]
[424324560,1780768300000,-1729.70500197,0.00037539,5]
[424324586,1780768300000,-1000.0,0.0003763,2]
[424324535,1780768300000,-150.0,0.00037449,2]
[424324588,1780768300000,-1000.0,0.0003763,2]
[424324621,1780768300000,-1000.0,0.0003763,2]
[424324623,1780768300000,-1000.0,0.0003763,2]
[424324622,1780768300000,-1000.0,0.0003763,2]
[424324620,1780768300000,-1000.0,0.0003763,2]
[424324626,1780768300000,-1000.0,0.0003763,2]
[424324636,1780768300000,-1000.0,0.0003763,2]
[424324629,1780768300000,-1000.0,0.0003763,2]
[424324632,1780768300000,-1000.0,0.0003763,2]
[424324630,1780768300000,-1000.0,0.0003763,2]
[424324628,1780768300000,-1000.0,0.0003763,2]
[424324625,1780768300000,-1000.0,0.0003763,2]
[424324633,1780768300000,-1000.0,0.0003763,2]
[424324616,1780768300000,-1000.0,0.0003763,2]
[424324631,1780768300000,-1000.0,0.0003763,2]
[424324627,1780768300000,-1000.0,0.0003763,2]
[424324634,1780768300000,-1000.0,0.0003763,2]
[424324637,1780768300000,-1000.0,0.0003763,2]
[424324639,1780768300000,-404.34,0.00037633,120]
[424324640,1780768300000,-4531.54055894,0.00037635,10]
[424324638,1780768300000,-1000.0,0.0003763,2]
[424324642,1780768300000,-1511.002577,0.00037635,7]
[424324644,1780768300000,-223.74,0.0003765,78]
[424324645,1780768300000,-5000.0,0.00037657,7]
[424324641,1780768300000,-2994.814402,0.00037635,7]
[424324587,1780768300000,-1000.0,0.0003763,2]
[424324643,1780768300000,-150.0,0.00037638,120]
[424324635,1780768300000,-1000.0,0.0003763,2]
[424324618,1780768300000,-1000.0,0.0003763,2]
[424324646,1780768300000,-150.0,0.0003767,7]
[424324619,1780768300000,-1000.0,0.0003763,2]
[424324617,1780768300000,-1000.0,0.0003763,2]
[424324589,1780768300000,-1000.0,0.0003763,2]
[424324594,1780768300000,-1000.0,0.0003763,2]
[424324593,1780768300000,-1000.0,0.0003763,2]
[424324595,1780768300000,-1000.0,0.0003763,2]
[424324599,1780768300000,-1000.0,0.0003763,2]
[424324598,1780768300000,-1000.0,0.0003763,2]
[424324597,1780768300000,-1000.0,0.0003763,2]
[424324596,1780768300000,-1000.0,0.0003763,2]
[424324601,1780768300000,-1000.0,0.0003763,2]
[424324612,1780768300000,-1000.0,0.0003763,2]
[424324611,1780768300000,-1000.0,0.0003763,2]
[424324602,1780768300000,-1000.0,0.0003763,2]
[424324590,1780768300000,-1000.0,0.0003763,2]
[424324610,1780768300000,-1000.0,0.0003763,2]
[424324614,1780768300000,-1000.0,0.0003763,2]
[424324624,1780768300000,-1000.0,0.0003763,2]
[424324615,1780768300000,-1000.0,0.0003763,2]
[424324606,1780768300000,-1000.0,0.0003763,2]
[424324605,1780768300000,-1000.0,0.0003763,2]
[424324613,1780768300000,-1000.0,0.0003763,2]
[424324607,1780768300000,-1000.0,0.0003763,2]
[424324608,1780768300000,-1000.0,0.0003763,2]
[424324600,1780768300000,-1000.0,0.0003763,2]
[424324604,1780768300000,-1000.0,0.0003763,2]
[424324603,1780768300000,-1000.0,0.0003763,2]
[424324609,1780768300000,-1000.0,0.0003763,2]
[424324684,1780768301000,-20117.8153,0.00037777,9]
[424324683,1780768301000,-150.0,0.00037762,120]
[424324682,1780768301000,-320.0,0.00037754,46]
[424324680,1780768301000,-1075.96,0.00037741,30]
[424324681,1780768301000,-1075.96,0.00037741,120]
[424324678,1780768301000,-5000.0,0.00037741,2]
[424324686,1780768301000,-5000.0,0.00037784,2]
[424324675,1780768301000,-230.43825109,0.00037704,7]
[424324677,1780768301000,-78033.35941512,0.0003774,60]
[424324679,1780768301000,-5000.0,0.00037741,7]
[424324685,1780768301000,-5000.0,0.00037784,2]
[424324693,1780768301000,-300.0,0.00037793,2]
[424324689,1780768301000,-250.0,0.00037784,2]
[424324695,1780768301000,-180.550825,0.000378,19]
[424324692,1780768301000,-250.0,0.00037784,2]
[424324694,1780768301000,-161.190426,0.000378,19]
[424324688,1780768301000,-5000.0,0.00037784,2]
[424324698,1780768301000,-463.576652,0.000378,19]
[424324690,1780768301000,-250.0,0.00037784,2]
[424324697,1780768301000,-282.647132,0.000378,19]
[424324696,1780768301000,-179.238622,0.000378,19]
[424324691,1780768301000,-250.0,0.00037784,2]
[424324676,1780768301000,-150.0,0.00037721,120]
[424324687,1780768301000,-5000.0,0.00037784,2]
[424324672,1780768301000,-151.3111989,0.00037701,30]
[424324654,1780768301000,-150.0,0.0003767,7]
[424324670,1780768301000,-150.0,0.00037694,2]
[424324647,1780768301000,-150.0,0.0003767,7]
[424324649,1780768301000,-151.58232666,0.0003767,7]
[424324648,1780768301000,-150.0,0.0003767,7]
[424324651,1780768301000,-150.0,0.0003767,7]
[424324650,1780768301000,-150.0,0.0003767,7]
[424324661,1780768301000,-150.0,0.0003767,7]
[424324662,1780768301000,-150.0,0.0003767,7]
[424324655,1780768301000,-150.0,0.0003767,7]
[424324657,1780768301000,-150.0,0.0003767,7]
[424324653,1780768301000,-150.0,0.0003767,7]
[424324659,1780768301000,-150.0,0.0003767,7]
[424324671,1780768301000,-158.13681208,0.00037695,2]
[424324660,1780768301000,-150.0,0.0003767,7]
[424324658,1780768301000,-150.0,0.0003767,7]
[424324656,1780768301000,-150.0,0.0003767,7]
[424324663,1780768301000,-150.0,0.0003767,7]
[424324664,1780768301000,-150.0,0.0003767,7]
[424324674,1780768301000,-152.2,0.00037703,13]
[424324667,1780768301000,-150.0,0.0003767,7]
[424324666,1780768301000,-150.0,0.0003767,7]
[424324665,1780768301000,-150.0,0.0003767,7]
[424324668,1780768301000,-2000.0,0.00037672,7]
[424324669,1780768301000,-150.0,0.0003768,120]
[424324673,1780768301000,-152.19,0.00037703,13]
[424324652,1780768301000,-150.0,0.0003767,7]
[424324710,1780768301000,-1157.05,0.00037808,2]
[424324700,1780768301000,-76603.79419697,0.00037808,7]
[424324699,1780768301000,-150.0,0.00037803,120]
[424324732,1780768301000,-889.62,0.00037808,2]
[424324734,1780768301000,-889.62,0.00037808,2]
[424324729,1780768301000,-889.62,0.00037808,2]
[424324731,1780768301000,-889.62,0.00037808,2]
[424324728,1780768301000,-889.62,0.00037808,2]
[424324735,1780768301000,-889.62,0.00037808,2]
[424324738,1780768301000,-889.62,0.00037808,2]
[424324741,1780768301000,-889.62,0.00037808,2]
[424324740,1780768301000,-889.62,0.00037808,2]
[424324739,1780768301000,-889.62,0.00037808,2]
[424324743,1780768301000,-889.62,0.00037808,2]
[424324733,1780768301000,-889.62,0.00037808,2]
[424324744,1780768301000,-889.62,0.00037808,2]
[424324745,1780768301000,-889.62,0.00037808,2]
[424324747,1780768301000,-889.62,0.00037808,2]
[424324749,1780768301000,-500.0,0.00037808,2]
[424324748,1780768301000,-889.70612158,0.00037808,2]
[424324752,1780768301000,-500.0,0.00037808,2]
[424324750,1780768301000,-500.0,0.00037808,2]
[424324751,1780768301000,-500.0,0.00037808,2]
[424324755,1780768301000,-500.0,0.00037808,2]
[424324753,1780768301000,-500.0,0.00037808,2]
[424324754,1780768301000,-500.0,0.00037808,2]
[424324701,1780768301000,-1157.05,0.00037808,2]
[424324746,1780768301000,-889.62,0.00037808,2]
[424324730,1780768301000,-889.62,0.00037808,2]
[424324742,1780768301000,-889.62,0.00037808,2]
[424324725,1780768301000,-889.62,0.00037808,2]
[424324702,1780768301000,-1157.05,0.00037808,2]
[424324727,1780768301000,-889.62,0.00037808,2]
[424324707,1780768301000,-1157.05,0.00037808,2]
[424324703,1780768301000,-1157.05,0.00037808,2]
[424324704,1780768301000,-1157.05,0.00037808,2]
[424324709,1780768301000,-1157.05,0.00037808,2]
[424324705,1780768301000,-1157.05,0.00037808,2]
[424324708,1780768301000,-1157.05,0.00037808,2]
[424324711,1780768301000,-1157.05,0.00037808,2]
[424324713,1780768301000,-1157.05,0.00037808,2]
[424324712,1780768301000,-1157.05,0.00037808,2]
[424324724,1780768301000,-1157.21386428,0.00037808,2]
[424324722,1780768301000,-1157.05,0.00037808,2]
[424324706,1780768301000,-1157.05,0.00037808,2]
[424324716,1780768301000,-1157.05,0.00037808,2]
[424324737,1780768301000,-889.62,0.00037808,2]
[424324726,1780768301000,-889.62,0.00037808,2]
[424324720,1780768301000,-1157.05,0.00037808,2]
[424324719,1780768301000,-1157.05,0.00037808,2]
[424324721,1780768301000,-1157.05,0.00037808,2]
[424324736,1780768301000,-889.62,0.00037808,2]
[424324718,1780768301000,-1157.05,0.00037808,2]
[424324723,1780768301000,-1157.05,0.00037808,2]
[424324715,1780768301000,-1157.05,0.00037808,2]
[424324714,1780768301000,-1157.05,0.00037808,2]
[424324717,1780768301000,-1157.05,0.00037808,2]
[424324808,1780768302000,-500.0,0.00037808,2]